[Event "*** Titled Tuesday Blitz"]
[Site "Chess.com"]
[Date "2021.04.27"]
[Round "4"]
[White "Aradhya2000"]
[Black "MartinMatthiesen"]
[Result "1/2-1/2"]
[WhiteElo "2625"]
[BlackElo "2457"]
[TimeControl "180+1"]
[EndTime "10:40:40 PDT"]
[Termination "Game drawn - insufficient material"]

1. d4 {[%clk 0:03:00.9]} 1... Nf6 {[%clk 0:02:58.5]} 2. c4 {[%clk 0:03:00.2]}
2... e6 {[%clk 0:02:58.3]} 3. a3 {[%clk 0:03:00]} 3... c5 {[%clk 0:02:56.2]} 4.
e3 {[%clk 0:02:59.6]} 4... g6 {[%clk 0:02:52.5]} 5. Nc3 {[%clk 0:02:59.2]} 5...
Bg7 {[%clk 0:02:52.3]} 6. Nf3 {[%clk 0:02:59.1]} 6... O-O {[%clk 0:02:51.1]} 7.
d5 {[%clk 0:02:57.5]} 7... exd5 {[%clk 0:02:50.3]} 8. cxd5 {[%clk 0:02:58.4]}
8... d6 {[%clk 0:02:50.4]} 9. h3 {[%clk 0:02:54.9]} 9... a6 {[%clk 0:02:46.9]}
10. Bd3 {[%clk 0:02:50]} 10... b5 {[%clk 0:02:46]} 11. O-O {[%clk 0:02:50]}
11... Nbd7 {[%clk 0:02:44]} 12. Re1 {[%clk 0:02:48]} 12... Re8 {[%clk
0:02:41.1]} 13. e4 {[%clk 0:02:44.3]} 13... c4 {[%clk 0:02:40.1]} 14. Bc2 {[%clk
0:02:43.4]} 14... Nc5 {[%clk 0:02:38.5]} 15. Nd4 {[%clk 0:02:36]} 15... Bd7
{[%clk 0:02:37.8]} 16. Bf4 {[%clk 0:02:32]} 16... Qb6 {[%clk 0:02:36.7]} 17. Rb1
{[%clk 0:02:24.9]} 17... Ncxe4 {[%clk 0:02:24.9]} 18. Bxe4 {[%clk 0:02:21.7]}
18... Nxe4 {[%clk 0:02:24.3]} 19. Rxe4 {[%clk 0:02:21.1]} 19... Rxe4 {[%clk
0:02:22.2]} 20. Nxe4 {[%clk 0:02:21.9]} 20... Bxd4 {[%clk 0:02:20.8]} 21. Qd2
{[%clk 0:01:57]} 21... Bf5 {[%clk 0:02:08.3]} 22. Rd1 {[%clk 0:01:54.7]} 22...
Be5 {[%clk 0:01:50.7]} 23. Bxe5 {[%clk 0:01:44.2]} 23... dxe5 {[%clk 0:01:50.5]}
24. Qe2 {[%clk 0:00:54.9]} 24... f6 {[%clk 0:01:37.3]} 25. d6 {[%clk 0:00:49.9]}
25... Kg7 {[%clk 0:01:35.4]} 26. g4 {[%clk 0:00:37.1]} 26... Bxe4 {[%clk
0:01:26.6]} 27. Qxe4 {[%clk 0:00:36]} 27... Rd8 {[%clk 0:01:24.9]} 28. Qd5
{[%clk 0:00:35.5]} 28... Rd7 {[%clk 0:01:12.5]} 29. g5 {[%clk 0:00:33.1]} 29...
fxg5 {[%clk 0:00:59.7]} 30. Qxe5+ {[%clk 0:00:31.8]} 30... Kh6 {[%clk
0:00:59.9]} 31. Rd4 {[%clk 0:00:25.1]} 31... Qc6 {[%clk 0:00:44.8]} 32. h4
{[%clk 0:00:20.9]} 32... Qf3 {[%clk 0:00:44.3]} 33. hxg5+ {[%clk 0:00:18.2]}
33... Kh5 {[%clk 0:00:44.2]} 34. Qe6 {[%clk 0:00:12.2]} 34... Qf5 {[%clk
0:00:40.3]} 35. Qxf5 {[%clk 0:00:11.6]} 35... gxf5 {[%clk 0:00:40.4]} 36. f4
{[%clk 0:00:12.2]} 36... h6 {[%clk 0:00:37.9]} 37. Rd5 {[%clk 0:00:10.9]} 37...
hxg5 {[%clk 0:00:31.5]} 38. Rxf5 {[%clk 0:00:10.9]} 38... Kg4 {[%clk 0:00:31.6]}
39. Rxg5+ {[%clk 0:00:11.2]} 39... Kxf4 {[%clk 0:00:31.7]} 40. Rg6 {[%clk
0:00:09]} 40... Ke5 {[%clk 0:00:31.3]} 41. Rg5+ {[%clk 0:00:08.2]} 41... Kd4
{[%clk 0:00:30.5]} 42. Kf2 {[%clk 0:00:07]} 42... Rxd6 {[%clk 0:00:28.4]} 43.
Ke2 {[%clk 0:00:06.9]} 43... Rh6 {[%clk 0:00:25.2]} 44. Rg4+ {[%clk 0:00:05.2]}
44... Kc5 {[%clk 0:00:25]} 45. Kd2 {[%clk 0:00:05.8]} 45... Rh3 {[%clk 0:00:24]}
46. Kc2 {[%clk 0:00:05.4]} 46... Kb6 {[%clk 0:00:22.4]} 47. Rg6+ {[%clk
0:00:04.1]} 47... Ka5 {[%clk 0:00:22.6]} 48. Rf6 {[%clk 0:00:04.6]} 48... Rh8
{[%clk 0:00:19.6]} 49. Re6 {[%clk 0:00:04.8]} 49... Rb8 {[%clk 0:00:19.6]} 50.
b4+ {[%clk 0:00:04.5]} 50... cxb3+ {[%clk 0:00:17.6]} 51. Kxb3 {[%clk
0:00:05.2]} 51... Rb6 {[%clk 0:00:17.8]} 52. Re3 {[%clk 0:00:05.3]} 52... Rg6
{[%clk 0:00:17]} 53. Rf3 {[%clk 0:00:05.6]} 53... Kb6 {[%clk 0:00:16.8]} 54. Re3
{[%clk 0:00:05.9]} 54... Rf6 {[%clk 0:00:16.6]} 55. a4 {[%clk 0:00:05.8]} 55...
bxa4+ {[%clk 0:00:15.4]} 56. Kxa4 {[%clk 0:00:05.1]} 56... Kc6 {[%clk 0:00:15]}
57. Ka5 {[%clk 0:00:04.6]} 57... Kb7 {[%clk 0:00:15.2]} 58. Rb3+ {[%clk
0:00:04.6]} 58... Ka7 {[%clk 0:00:15.2]} 59. Re3 {[%clk 0:00:04.3]} 59... Rf5+
{[%clk 0:00:15.4]} 60. Kb4 {[%clk 0:00:04.7]} 60... a5+ {[%clk 0:00:15.4]} 61.
Ka4 {[%clk 0:00:04.7]} 61... Kb6 {[%clk 0:00:13.4]} 62. Re6+ {[%clk 0:00:05]}
62... Kc5 {[%clk 0:00:12.9]} 63. Kxa5 {[%clk 0:00:04.9]} 63... Kd5 {[%clk
0:00:13]} 64. Rb6 {[%clk 0:00:05]} 64... Ke4+ {[%clk 0:00:12.3]} 65. Rb5 {[%clk
0:00:04.7]} 65... Rxb5+ {[%clk 0:00:12.1]} 66. Kxb5 {[%clk 0:00:05.6]} 1/2-1/2

[Event "*** Titled Tuesday Blitz"]
[Site "Chess.com"]
[Date "2021.04.27"]
[Round "4"]
[White "frederiksvane"]
[Black "debashisdebs"]
[Result "1-0"]
[WhiteElo "2753"]
[BlackElo "2918"]
[TimeControl "180+1"]
[EndTime "10:40:42 PDT"]
[Termination "frederiksvane won by resignation"]

1. e4 {[%clk 0:03:00.9]} 1... c5 {[%clk 0:02:58]} 2. Nf3 {[%clk 0:03:00.8]} 2...
d6 {[%clk 0:02:57.9]} 3. d4 {[%clk 0:02:56.7]} 3... cxd4 {[%clk 0:02:58.8]} 4.
Nxd4 {[%clk 0:02:57.1]} 4... Nf6 {[%clk 0:02:59.2]} 5. Nc3 {[%clk 0:02:57.5]}
5... a6 {[%clk 0:02:59.8]} 6. Bd3 {[%clk 0:02:58.1]} 6... e5 {[%clk 0:02:58.5]}
7. Nde2 {[%clk 0:02:57.8]} 7... Be7 {[%clk 0:02:57.6]} 8. O-O {[%clk 0:02:57.7]}
8... Be6 {[%clk 0:02:41.7]} 9. Ng3 {[%clk 0:02:48.8]} 9... g6 {[%clk 0:02:26.4]}
10. Nd5 {[%clk 0:02:39]} 10... Bxd5 {[%clk 0:02:26.4]} 11. exd5 {[%clk
0:02:38.9]} 11... Nbd7 {[%clk 0:02:27.3]} 12. c4 {[%clk 0:02:38]} 12... O-O
{[%clk 0:02:26.8]} 13. Bh6 {[%clk 0:02:36.2]} 13... Re8 {[%clk 0:02:26.9]} 14.
Rc1 {[%clk 0:02:35.4]} 14... Bf8 {[%clk 0:02:22.1]} 15. Be3 {[%clk 0:02:35.2]}
15... a5 {[%clk 0:02:17.3]} 16. Qb3 {[%clk 0:02:23.2]} 16... b6 {[%clk
0:02:16.2]} 17. Qb5 {[%clk 0:02:17.9]} 17... h5 {[%clk 0:01:39.2]} 18. Bg5
{[%clk 0:02:08.6]} 18... Be7 {[%clk 0:01:31.6]} 19. Bb1 {[%clk 0:02:03.6]} 19...
Nh7 {[%clk 0:01:23.9]} 20. Bxe7 {[%clk 0:01:56.5]} 20... Qxe7 {[%clk 0:01:19.7]}
21. Rce1 {[%clk 0:01:51.7]} 21... h4 {[%clk 0:01:14.8]} 22. Ne4 {[%clk
0:01:51.4]} 22... Nc5 {[%clk 0:01:14.8]} 23. b3 {[%clk 0:01:36]} 23... Nxe4
{[%clk 0:01:08.1]} 24. Bxe4 {[%clk 0:01:35.7]} 24... Rab8 {[%clk 0:01:04.6]} 25.
f4 {[%clk 0:01:10.4]} 25... f5 {[%clk 0:00:52.6]} 26. Bxf5 {[%clk 0:00:51.8]}
26... gxf5 {[%clk 0:00:49.9]} 27. fxe5 {[%clk 0:00:52]} 27... dxe5 {[%clk
0:00:46.6]} 28. Rxf5 {[%clk 0:00:52.2]} 28... e4 {[%clk 0:00:35.5]} 29. Kh1
{[%clk 0:00:42.3]} 29... Qb4 {[%clk 0:00:29.2]} 30. Qxb4 {[%clk 0:00:30.1]}
30... axb4 {[%clk 0:00:30.1]} 31. Rf4 {[%clk 0:00:29.5]} 31... Ra8 {[%clk
0:00:19.3]} 32. Re2 {[%clk 0:00:29.5]} 32... Rf8 {[%clk 0:00:16.4]} 33. Rg4+
{[%clk 0:00:24.6]} 33... Kh8 {[%clk 0:00:14.1]} 34. Kg1 {[%clk 0:00:23.8]} 34...
Nf6 {[%clk 0:00:10.8]} 35. Rxh4+ {[%clk 0:00:24]} 35... Kg7 {[%clk 0:00:11.3]}
36. Rf4 {[%clk 0:00:24.3]} 36... Kg6 {[%clk 0:00:07.6]} 37. h4 {[%clk
0:00:23.8]} 37... Nh5 {[%clk 0:00:02.8]} 38. Rfxe4 {[%clk 0:00:20.1]} 38... Nf6
{[%clk 0:00:01.3]} 39. Re6 {[%clk 0:00:20.4]} 39... Rf7 {[%clk 0:00:02.2]} 40.
R2e5 {[%clk 0:00:20.6]} 40... Kg7 {[%clk 0:00:03.1]} 41. Rg5+ {[%clk 0:00:20.2]}
41... Kf8 {[%clk 0:00:03.7]} 42. Rf5 {[%clk 0:00:20.2]} 42... Ng8 {[%clk
0:00:03.6]} 43. Rxf7+ {[%clk 0:00:19.7]} 43... Kxf7 {[%clk 0:00:04.5]} 44. Rxb6
{[%clk 0:00:19.8]} 44... Rxa2 {[%clk 0:00:05]} 45. Rxb4 {[%clk 0:00:20.4]} 45...
Nf6 {[%clk 0:00:05.2]} 46. Kh2 {[%clk 0:00:16.2]} 46... Ng4+ {[%clk 0:00:05.4]}
47. Kh3 {[%clk 0:00:16.4]} 47... Ne3 {[%clk 0:00:06.3]} 48. g4 {[%clk
0:00:16.5]} 48... Rf2 {[%clk 0:00:04.1]} 49. Rb7+ {[%clk 0:00:16.8]} 49... Kf6
{[%clk 0:00:03.8]} 50. Rb6+ {[%clk 0:00:17.1]} 50... Ke5 {[%clk 0:00:04]} 51.
Re6+ {[%clk 0:00:17.7]} 51... Kd4 {[%clk 0:00:04.4]} 52. h5 {[%clk 0:00:15.4]}
52... Rf3+ {[%clk 0:00:03.7]} 53. Kh4 {[%clk 0:00:15.4]} 53... Rf4 {[%clk
0:00:04.2]} 54. Rg6 {[%clk 0:00:15.6]} 54... Rf1 {[%clk 0:00:03.2]} 55. h6
{[%clk 0:00:13.4]} 55... Ke5 {[%clk 0:00:03.3]} 56. Re6+ {[%clk 0:00:12.3]}
56... Kd4 {[%clk 0:00:02.2]} 57. d6 {[%clk 0:00:12.3]} 57... Rh1+ {[%clk
0:00:01.6]} 58. Kg5 {[%clk 0:00:12.4]} 58... Rg1 {[%clk 0:00:02.5]} 59. Rxe3
{[%clk 0:00:12]} 59... Kxe3 {[%clk 0:00:01.4]} 60. d7 {[%clk 0:00:12.3]} 60...
Rd1 {[%clk 0:00:02.3]} 61. h7 {[%clk 0:00:12.4]} 61... Rxd7 {[%clk 0:00:03.1]}
62. h8=Q {[%clk 0:00:12.8]} 62... Rd3 {[%clk 0:00:03.1]} 63. Qe5+ {[%clk
0:00:12.6]} 63... Kd2 {[%clk 0:00:04]} 64. Qb2+ {[%clk 0:00:12.1]} 64... Ke3
{[%clk 0:00:04.1]} 65. Qc1+ {[%clk 0:00:12.3]} 65... Kd4 {[%clk 0:00:04.1]} 66.
c5 {[%clk 0:00:11]} 1-0

[Event "*** Titled Tuesday Blitz"]
[Site "Chess.com"]
[Date "2021.04.27"]
[Round "4"]
[White "SchmakAttack"]
[Black "masteryoungK"]
[Result "1/2-1/2"]
[WhiteElo "2617"]
[BlackElo "2448"]
[TimeControl "180+1"]
[EndTime "10:40:59 PDT"]
[Termination "Game drawn by repetition"]

1. Nf3 {[%clk 0:03:00.9]} 1... Nf6 {[%clk 0:02:58.8]} 2. g3 {[%clk 0:03:01]}
2... g6 {[%clk 0:02:58.4]} 3. b3 {[%clk 0:03:00.4]} 3... Bg7 {[%clk 0:02:58]} 4.
Bb2 {[%clk 0:03:01.1]} 4... O-O {[%clk 0:02:58.6]} 5. Bg2 {[%clk 0:03:01.7]}
5... d6 {[%clk 0:02:57]} 6. c4 {[%clk 0:02:58.4]} 6... e5 {[%clk 0:02:54.5]} 7.
O-O {[%clk 0:02:58.5]} 7... Re8 {[%clk 0:02:50.5]} 8. Nc3 {[%clk 0:02:53.8]}
8... Nc6 {[%clk 0:02:49]} 9. d4 {[%clk 0:02:43.6]} 9... e4 {[%clk 0:02:42.9]}
10. Ng5 {[%clk 0:02:25.7]} 10... Bf5 {[%clk 0:02:35.1]} 11. d5 {[%clk
0:01:55.4]} 11... Nb8 {[%clk 0:02:08.9]} 12. f3 {[%clk 0:01:29.2]} 12... exf3
{[%clk 0:02:05.9]} 13. Nxf3 {[%clk 0:00:55.3]} 13... Ne4 {[%clk 0:02:01.3]} 14.
Rc1 {[%clk 0:00:54.3]} 14... Nd7 {[%clk 0:01:48.6]} 15. Nd4 {[%clk 0:00:49.6]}
15... Nxc3 {[%clk 0:01:35.8]} 16. Bxc3 {[%clk 0:00:48.2]} 16... Be4 {[%clk
0:01:34.9]} 17. Bxe4 {[%clk 0:00:33.3]} 17... Rxe4 {[%clk 0:01:35.8]} 18. Nb5
{[%clk 0:00:32.9]} 18... Bxc3 {[%clk 0:01:29.7]} 19. Nxc3 {[%clk 0:00:33.8]}
19... Re8 {[%clk 0:01:24.7]} 20. Qd4 {[%clk 0:00:30.2]} 20... Qe7 {[%clk
0:01:22.6]} 21. e4 {[%clk 0:00:24.9]} 21... a6 {[%clk 0:01:10.9]} 22. b4 {[%clk
0:00:23.4]} 22... Qe5 {[%clk 0:01:09.9]} 23. Qf2 {[%clk 0:00:22.8]} 23... Rf8
{[%clk 0:01:00.4]} 24. Ne2 {[%clk 0:00:20.5]} 24... Qxe4 {[%clk 0:00:56.9]} 25.
Nd4 {[%clk 0:00:17.4]} 25... Ne5 {[%clk 0:00:51.6]} 26. Qf4 {[%clk 0:00:05.5]}
26... Qxf4 {[%clk 0:00:46.1]} 27. gxf4 {[%clk 0:00:06.4]} 27... Nd3 {[%clk
0:00:44.6]} 28. Rb1 {[%clk 0:00:02.6]} 28... Rfe8 {[%clk 0:00:40.4]} 29. Rf3
{[%clk 0:00:02.7]} 29... Ne1 {[%clk 0:00:19.5]} 30. Rc3 {[%clk 0:00:02.5]} 30...
Re4 {[%clk 0:00:19.1]} 31. Rcb3 {[%clk 0:00:03]} 31... Rxd4 {[%clk 0:00:16.5]}
32. Rxe1 {[%clk 0:00:03.6]} 32... Rxc4 {[%clk 0:00:17.1]} 33. b5 {[%clk
0:00:03.6]} 33... axb5 {[%clk 0:00:16.9]} 34. Rxb5 {[%clk 0:00:04.5]} 34... Rxa2
{[%clk 0:00:17.4]} 35. Rxb7 {[%clk 0:00:04.7]} 35... Rxf4 {[%clk 0:00:17.2]} 36.
Rxc7 {[%clk 0:00:05.3]} 36... Rff2 {[%clk 0:00:17.3]} 37. Rd7 {[%clk 0:00:03.5]}
37... Rg2+ {[%clk 0:00:17.1]} 38. Kh1 {[%clk 0:00:04.1]} 38... Rxh2+ {[%clk
0:00:17]} 39. Kg1 {[%clk 0:00:04.8]} 39... Rhg2+ {[%clk 0:00:17.5]} 40. Kh1
{[%clk 0:00:04.8]} 40... Rg3 {[%clk 0:00:15.1]} 41. Rxd6 {[%clk 0:00:04.7]}
41... Ra4 {[%clk 0:00:15.6]} 42. Re2 {[%clk 0:00:03.8]} 42... Rd4 {[%clk
0:00:13.1]} 43. Rd8+ {[%clk 0:00:03.3]} 43... Kg7 {[%clk 0:00:13.5]} 44. Re7
{[%clk 0:00:02]} 44... Rgd3 {[%clk 0:00:12]} 45. Red7 {[%clk 0:00:01]} 45... Rg3
{[%clk 0:00:11.2]} 46. Kh2 {[%clk 0:00:01.2]} 46... Rg5 {[%clk 0:00:10.8]} 47.
Kh3 {[%clk 0:00:01.7]} 47... h5 {[%clk 0:00:06.6]} 48. d6 {[%clk 0:00:02.2]}
48... Rg1 {[%clk 0:00:06.1]} 49. Re7 {[%clk 0:00:01.9]} 49... Rdg4 {[%clk
0:00:02.7]} 50. Re2 {[%clk 0:00:02.2]} 50... Rh1+ {[%clk 0:00:02.8]} 51. Rh2
{[%clk 0:00:02.9]} 51... Rd1 {[%clk 0:00:03.4]} 52. Re2 {[%clk 0:00:02.7]} 52...
Rd3+ {[%clk 0:00:03.9]} 53. Kh2 {[%clk 0:00:02.8]} 53... Rgd4 {[%clk 0:00:04.4]}
54. Rf2 {[%clk 0:00:03]} 54... Rxd6 {[%clk 0:00:04.4]} 55. Rb8 {[%clk
0:00:03.5]} 55... R3d4 {[%clk 0:00:04.4]} 56. Rb7 {[%clk 0:00:03.2]} 56... Rh4+
{[%clk 0:00:04.9]} 57. Kg3 {[%clk 0:00:03.3]} 57... Rg4+ {[%clk 0:00:05.8]} 58.
Kh3 {[%clk 0:00:03.9]} 58... Rf6 {[%clk 0:00:06.7]} 59. Re2 {[%clk 0:00:04]}
59... Rgf4 {[%clk 0:00:06.6]} 60. Ree7 {[%clk 0:00:03.2]} 60... Rf3+ {[%clk
0:00:07.5]} 61. Kg2 {[%clk 0:00:03.5]} 61... g5 {[%clk 0:00:08.4]} 62. Red7
{[%clk 0:00:03.4]} 62... h4 {[%clk 0:00:09.3]} 63. Rd5 {[%clk 0:00:03.6]} 63...
Kg6 {[%clk 0:00:08.9]} 64. Rbb5 {[%clk 0:00:04.3]} 64... R3f5 {[%clk 0:00:08.7]}
65. Rxf5 {[%clk 0:00:03.3]} 65... Rxf5 {[%clk 0:00:09.6]} 66. Rb8 {[%clk
0:00:03.8]} 66... g4 {[%clk 0:00:09.3]} 67. Rg8+ {[%clk 0:00:04]} 67... Kh5
{[%clk 0:00:09.3]} 68. Rh8+ {[%clk 0:00:04.7]} 68... Kg5 {[%clk 0:00:09.9]} 69.
Rg8+ {[%clk 0:00:05.4]} 69... Kf4 {[%clk 0:00:10.4]} 70. Ra8 {[%clk 0:00:06.1]}
70... h3+ {[%clk 0:00:10.8]} 71. Kh2 {[%clk 0:00:06.6]} 71... g3+ {[%clk
0:00:03.7]} 72. Kxh3 {[%clk 0:00:06.3]} 72... Rh5+ {[%clk 0:00:03.9]} 73. Kg2
{[%clk 0:00:06.8]} 73... Rh2+ {[%clk 0:00:04.1]} 74. Kg1 {[%clk 0:00:07.5]}
74... Kg4 {[%clk 0:00:02.6]} 75. Ra4+ {[%clk 0:00:03.9]} 75... Kg5 {[%clk
0:00:02.7]} 76. Ra3 {[%clk 0:00:03.9]} 76... Kg4 {[%clk 0:00:01.7]} 77. Ra4+
{[%clk 0:00:04.4]} 77... Kg5 {[%clk 0:00:02.3]} 78. Ra3 {[%clk 0:00:04.9]} 78...
Kg4 {[%clk 0:00:02.9]} 79. Ra4+ {[%clk 0:00:05.5]} 1/2-1/2

[Event "*** Titled Tuesday Blitz"]
[Site "Chess.com"]
[Date "2021.04.27"]
[Round "4"]
[White "mishanick"]
[Black "anon6121824"]
[Result "1/2-1/2"]
[WhiteElo "3012"]
[BlackElo "2808"]
[TimeControl "180+1"]
[EndTime "10:41:04 PDT"]
[Termination "Game drawn by repetition"]

1. e4 {[%clk 0:03:00.9]} 1... c6 {[%clk 0:02:56]} 2. Nf3 {[%clk 0:03:00.8]} 2...
d5 {[%clk 0:02:55.6]} 3. Nc3 {[%clk 0:03:01.5]} 3... dxe4 {[%clk 0:02:54.9]} 4.
Nxe4 {[%clk 0:03:02.4]} 4... Nf6 {[%clk 0:02:55.8]} 5. Qe2 {[%clk 0:03:02.5]}
5... Nxe4 {[%clk 0:02:54.9]} 6. Qxe4 {[%clk 0:03:03.4]} 6... Nd7 {[%clk
0:02:55.6]} 7. Bc4 {[%clk 0:03:03.3]} 7... Nf6 {[%clk 0:02:54.7]} 8. Ne5 {[%clk
0:03:03.3]} 8... e6 {[%clk 0:02:51]} 9. Qe2 {[%clk 0:03:03.3]} 9... Bd6 {[%clk
0:02:49.4]} 10. b3 {[%clk 0:03:00.4]} 10... O-O {[%clk 0:02:46.6]} 11. Bb2
{[%clk 0:03:00.7]} 11... Nd5 {[%clk 0:02:43.3]} 12. g3 {[%clk 0:02:59.9]} 12...
f6 {[%clk 0:02:41.9]} 13. Ng4 {[%clk 0:02:54.9]} 13... e5 {[%clk 0:02:41.8]} 14.
Ne3 {[%clk 0:02:55.4]} 14... Be6 {[%clk 0:02:41]} 15. a4 {[%clk 0:02:47.4]}
15... Qd7 {[%clk 0:02:38.1]} 16. O-O {[%clk 0:02:46.6]} 16... Rae8 {[%clk
0:02:36.9]} 17. Nxd5 {[%clk 0:02:46.1]} 17... Bxd5 {[%clk 0:02:35.6]} 18. Rfe1
{[%clk 0:02:34.2]} 18... Kh8 {[%clk 0:02:30.3]} 19. a5 {[%clk 0:02:28.5]} 19...
Qf5 {[%clk 0:02:29.9]} 20. Bxd5 {[%clk 0:02:25.7]} 20... cxd5 {[%clk 0:02:29.5]}
21. d3 {[%clk 0:02:26.3]} 21... a6 {[%clk 0:02:22.9]} 22. Ra4 {[%clk 0:02:26.4]}
22... g5 {[%clk 0:02:17.1]} 23. h4 {[%clk 0:02:08.4]} 23... h6 {[%clk
0:02:15.5]} 24. Qh5 {[%clk 0:02:01.7]} 24... Kg7 {[%clk 0:02:15.7]} 25. Kg2
{[%clk 0:02:01.7]} 25... Qg6 {[%clk 0:02:14.7]} 26. Qxg6+ {[%clk 0:01:58.5]}
26... Kxg6 {[%clk 0:02:15.6]} 27. c4 {[%clk 0:01:51.3]} 27... dxc4 {[%clk
0:02:15.4]} 28. Rxc4 {[%clk 0:01:49.5]} 28... Rc8 {[%clk 0:02:15.8]} 29. Rh1
{[%clk 0:01:44.1]} 29... Rxc4 {[%clk 0:02:15.4]} 30. bxc4 {[%clk 0:01:44.2]}
30... Bb4 {[%clk 0:02:12.7]} 31. h5+ {[%clk 0:01:44.2]} 31... Kf5 {[%clk
0:02:11]} 32. Ra1 {[%clk 0:01:44.3]} 32... Rd8 {[%clk 0:02:10.1]} 33. Ra4 {[%clk
0:01:35.4]} 33... Bc5 {[%clk 0:02:09.8]} 34. Ba3 {[%clk 0:01:33.8]} 34... Ba7
{[%clk 0:02:05.2]} 35. f3 {[%clk 0:01:26.9]} 35... Rxd3 {[%clk 0:02:04]} 36. g4+
{[%clk 0:01:27]} 36... Ke6 {[%clk 0:01:59.1]} 37. Bf8 {[%clk 0:01:27]} 37...
Rd2+ {[%clk 0:01:56.3]} 38. Kh1 {[%clk 0:01:24.3]} 38... Kf7 {[%clk 0:01:38.2]}
39. Bxh6 {[%clk 0:01:24.1]} 39... Bc5 {[%clk 0:01:38.5]} 40. Ra1 {[%clk
0:01:23]} 40... Rd7 {[%clk 0:01:33.3]} 41. Rb1 {[%clk 0:01:22.3]} 41... Ke6
{[%clk 0:01:32.6]} 42. Kg2 {[%clk 0:01:16.3]} 42... Rh7 {[%clk 0:01:32.2]} 43.
Bf8 {[%clk 0:01:08.3]} 43... Bxf8 {[%clk 0:01:24.9]} 44. Rb6+ {[%clk 0:01:08.8]}
44... Kf7 {[%clk 0:01:21.8]} 45. Rxb7+ {[%clk 0:01:06.3]} 45... Be7 {[%clk
0:01:21.8]} 46. c5 {[%clk 0:01:06.8]} 46... Rh8 {[%clk 0:01:19.4]} 47. c6 {[%clk
0:01:07.1]} 47... Rc8 {[%clk 0:01:17.7]} 48. Rb6 {[%clk 0:01:07.5]} 48... f5
{[%clk 0:01:09.6]} 49. Rxa6 {[%clk 0:00:54.1]} 49... fxg4 {[%clk 0:01:09.3]} 50.
fxg4 {[%clk 0:00:55]} 50... Ke6 {[%clk 0:01:06.9]} 51. h6 {[%clk 0:00:50.4]}
51... Kd6 {[%clk 0:01:04.4]} 52. h7 {[%clk 0:00:40.7]} 52... Rh8 {[%clk
0:01:04]} 53. c7+ {[%clk 0:00:40.6]} 53... Kxc7 {[%clk 0:01:00]} 54. Rh6 {[%clk
0:00:40.9]} 54... Bc5 {[%clk 0:00:54.2]} 55. Kf3 {[%clk 0:00:40.4]} 55... Bd4
{[%clk 0:00:51.1]} 56. Ke4 {[%clk 0:00:39.4]} 56... Kb7 {[%clk 0:00:51.1]} 57.
Kd5 {[%clk 0:00:36]} 57... Ka7 {[%clk 0:00:50.5]} 58. Ke4 {[%clk 0:00:36.6]}
58... Kb7 {[%clk 0:00:50.1]} 59. Kf5 {[%clk 0:00:36.2]} 59... Ka7 {[%clk
0:00:49.6]} 60. a6 {[%clk 0:00:33.4]} 60... Ka8 {[%clk 0:00:34.4]} 61. Rh1
{[%clk 0:00:25.6]} 61... Ka7 {[%clk 0:00:32]} 62. Kg6 {[%clk 0:00:14.4]} 62...
e4 {[%clk 0:00:29.7]} 63. Rd1 {[%clk 0:00:14.7]} 63... Bc3 {[%clk 0:00:27.7]}
64. Rc1 {[%clk 0:00:14.6]} 64... Bd2 {[%clk 0:00:26.8]} 65. Rc7+ {[%clk
0:00:14.3]} 65... Kxa6 {[%clk 0:00:25.1]} 66. Kg7 {[%clk 0:00:14.5]} 66... Rxh7+
{[%clk 0:00:09.9]} 67. Kxh7 {[%clk 0:00:15.4]} 67... e3 {[%clk 0:00:10.5]} 68.
Re7 {[%clk 0:00:15.1]} 68... Kb5 {[%clk 0:00:10.6]} 69. Kg6 {[%clk 0:00:15.7]}
69... Kc4 {[%clk 0:00:08.2]} 70. Kf5 {[%clk 0:00:15.3]} 70... Kd3 {[%clk
0:00:07.2]} 71. Rd7+ {[%clk 0:00:13.5]} 71... Kc4 {[%clk 0:00:07.7]} 72. Rc7+
{[%clk 0:00:08.5]} 72... Kd3 {[%clk 0:00:07.9]} 73. Rd7+ {[%clk 0:00:08.9]}
73... Kc4 {[%clk 0:00:07.8]} 74. Re7 {[%clk 0:00:05.1]} 74... Kd3 {[%clk
0:00:08]} 75. Rd7+ {[%clk 0:00:05.6]} 1/2-1/2